bitfinex/quotes_BTCUSD_20220101
["timestamp","ask_amount","ask_price","bid_price","bid_amount"]
[1641047722351,0.25470249,46879.0,46875.0,0.71285569]
[1641047722551,0.25470249,46879.0,46873.0,0.00044]
[1641047722752,0.340792,46878.0,46873.0,0.00044]
[1641047722953,0.0425,46877.0,46873.0,0.00044]
[1641047723152,0.340792,46876.0,46873.0,0.00044]
[1641047723351,0.34203385,46876.0,46873.0,0.00044]
[1641047723595,0.340792,46876.0,46873.0,0.00044]
[1641047724095,0.36267309,46876.0,46873.0,0.00044]
[1641047724299,1.2424793,46876.0,46873.0,0.00044]
[1641047724896,0.41603209,46876.0,46873.0,0.00044]
[1641047725095,0.43486848,46876.0,46873.0,0.00044]
[1641047725295,0.41298739,46876.0,46873.0,0.00044]
[1641047725895,6.41298739,46876.0,46873.0,0.00044]
[1641047726096,6.43210248,46876.0,46873.0,0.00044]
[1641047726295,6.41326609,46876.0,46873.0,0.00044]
[1641047726694,6.41326609,46876.0,46873.0,0.00263695]
[1641047727098,6.4344311,46876.0,46873.0,0.00263695]
[1641047727357,6.41531601,46876.0,46873.0,0.00263695]
[1641047728153,6.6450664,46876.0,46873.0,0.00263695]
[1641047728353,6.62390139,46876.0,46873.0,0.00263695]
[1641047729256,6.62441472,46876.0,46873.0,0.00263695]
[1641047729456,6.23026372,46876.0,46873.0,0.00263695]
[1641047729655,6.23026372,46876.0,46875.0,0.00019245]
[1641047730257,6.23026372,46876.0,46875.0,0.05019245]
[1641047730454,6.23026372,46876.0,46875.0,0.36125722]
[1641047730657,6.25172192,46876.0,46875.0,0.05019245]
[1641047730991,6.2314582,46876.0,46875.0,0.05019245]
[1641047731194,6.25034131,46876.0,46875.0,0.05]
[1641047731494,6.21,46876.0,46875.0,0.36]
[1641047731894,6.21,46876.0,46875.0,0.05]
[1641047732095,6.22876626,46876.0,46875.0,0.05]
[1641047732795,5.19421289,46876.0,46875.0,0.05]
[1641047732996,5.19421289,46876.0,46875.0,2.2075]
[1641047732997,5.11672289,46876.0,46875.0,2.2075]
[1641047733195,5.11672289,46876.0,46875.0,2.2575]
[1641047733196,5.05736135,46876.0,46875.0,2.2575]
[1641047733396,4.01977497,46876.0,46875.0,2.3575]
[1641047733595,3.93367497,46876.0,46875.0,2.3575]
[1641047733796,3.93367497,46876.0,46875.0,1.2325]
[1641047733993,3.93367497,46876.0,46875.0,1.55261476]
[1641047734193,3.95412703,46876.0,46875.0,1.55261476]
[1641047734396,3.93599857,46876.0,46875.0,1.2325]
[1641047734759,3.85850857,46876.0,46875.0,2.69204649]
[1641047735250,3.85801873,46876.0,46875.0,2.464157]
[1641047735752,0.00499,46887.0,46876.0,3.61905]
[1641047735951,0.00499,46887.0,46886.0,1.05]
[1641047736151,0.00499,46887.0,46886.0,2.758292]
[1641047736352,0.053319,46904.0,46887.0,0.95]
[1641047736553,0.053319,46904.0,46891.0,0.00124611]
[1641047736752,0.053319,46904.0,46899.0,0.25718403]
[1641047738051,0.053319,46904.0,46900.0,0.290424]
[1641047738705,1.21205334,46903.0,46898.0,0.01815807]
[1641047738905,0.6548245,46902.0,46898.0,0.01815807]
[1641047739108,0.106661,46901.0,46898.0,0.01815807]
[1641047739305,1.29204552,46900.0,46899.0,0.01975713]
[1641047739506,1.34204552,46900.0,46899.0,0.01975713]
[1641047739806,0.34204552,46900.0,46899.0,0.01975713]
[1641047740005,0.44870852,46900.0,46899.0,0.01975713]
[1641047740208,2.59864925,46900.0,46899.0,0.01975713]
[1641047740406,2.59739573,46900.0,46899.0,0.01975713]
[1641047740605,0.447455,46900.0,46899.0,0.01975713]
[1641047741005,1.65950834,46900.0,46890.0,0.34162199]
[1641047741208,1.31871634,46900.0,46890.0,0.34162199]
[1641047742007,0.70648692,46892.0,46890.0,0.34162199]
[1641047742254,0.70648692,46892.0,46889.0,0.24304797]
[1641047742645,0.106662,46897.0,46889.0,0.24304797]
[1641047742646,0.58893111,46891.0,46889.0,0.24304797]
[1641047743844,0.58893111,46891.0,46890.0,0.45024127]
[1641047745045,0.58893111,46893.0,46890.0,0.45024127]
[1641047746101,0.58893111,46891.0,46890.0,0.45024127]
[1641047747905,0.70648692,46893.0,46890.0,0.45024127]
[1641047748111,1.16023301,46909.0,46890.0,0.45147108]
[1641047748112,0.053323,46899.0,46890.0,0.45147108]
[1641047748506,0.053323,46899.0,46890.0,0.45024127]
[1641047749206,0.21,46893.0,46890.0,0.45024127]
[1641047749405,0.053332,46892.0,46890.0,0.45024127]
[1641047750458,0.21,46893.0,46891.0,0.340792]
[1641047752059,0.21,46893.0,46891.0,0.67517282]
[1641047752659,0.21,46893.0,46891.0,0.340792]
[1641047753059,0.21,46893.0,46892.0,0.28935851]
[1641047753264,0.21,46893.0,46892.0,0.63015051]
[1641047754299,0.21,46893.0,46892.0,0.65054679]
[1641047754700,0.21,46893.0,46892.0,0.36118828]
[1641047755400,0.21,46893.0,46892.0,0.38282486]
[1641047755598,0.21,46893.0,46892.0,0.36242858]
[1641047755998,0.263329,46893.0,46892.0,0.36242858]
[1641047757000,0.263329,46893.0,46892.0,0.38170489]
[1641047757264,0.263329,46893.0,46892.0,0.36006831]
[1641047757658,0.263329,46893.0,46892.0,0.340792]
[1641047757958,0.21,46893.0,46892.0,0.340792]
[1641047759361,0.21,46893.0,46892.0,0.383292]
[1641047761299,0.21,46893.0,46892.0,0.40410254]
[1641047761893,0.21,46893.0,46892.0,0.45741854]
[1641047762492,0.21,46893.0,46892.0,0.47830739]
[1641047762693,0.21,46893.0,46892.0,0.45749685]
[1641047762893,0.058015,46906.0,46897.0,0.24253329]
[1641047763093,0.053315,46906.0,46897.0,0.24253329]
[1641047763893,0.053315,46906.0,46905.0,0.27857408]
[1641047764095,0.053315,46906.0,46905.0,0.61151705]
[1641047764767,0.05331,46910.0,46905.0,0.61151705]
[1641047765157,1.12383111,46920.0,46905.0,0.61151705]
[1641047765356,0.58893111,46920.0,46905.0,0.63012291]
[1641047765558,0.83038173,46920.0,46917.0,0.39509309]
[1641047765757,0.966615,46918.0,46917.0,0.39509309]
[1641047766059,0.447407,46918.0,46917.0,0.39509309]
[1641047766458,0.086615,46918.0,46917.0,0.41461602]
[1641047766660,0.053307,46919.0,46917.0,0.41461602]
[1641047766861,0.0386387,46921.0,46917.0,0.41461602]
[1641047767059,0.01932782,46921.0,46917.0,0.45711602]
[1641047767358,0.01932782,46921.0,46917.0,0.75331117]
[1641047767557,0.01932782,46921.0,46917.0,0.73378824]
[1641047767758,0.01932782,46921.0,46919.0,0.00129088]
[1641047767960,0.01932782,46921.0,46920.0,0.00125762]
[1641047768608,0.01932782,46921.0,46920.0,0.36691117]
[1641047769004,0.22932782,46921.0,46920.0,0.46691117]
[1641047769204,0.22932782,46921.0,46920.0,0.36691117]
[1641047769406,0.22932782,46921.0,46920.0,0.37733944]
[1641047770105,0.01932782,46921.0,46920.0,0.37733944]
[1641047770605,0.60825893,46921.0,46920.0,0.376741]
[1641047770804,0.60825893,46921.0,46920.0,0.05358745]
[1641047771405,0.01932782,46921.0,46920.0,0.07487577]
[1641047771606,0.01932782,46921.0,46920.0,0.06504594]
[1641047771804,0.70648692,46922.0,46920.0,0.06504594]
[1641047772254,0.70648692,46921.0,46920.0,0.06504594]
[1641047772645,0.70648692,46921.0,46920.0,0.04375762]
[1641047772846,0.70648692,46922.0,46920.0,0.04375762]
[1641047773046,0.70648692,46922.0,46920.0,0.0425]
[1641047773246,0.69478092,46922.0,46920.0,0.0425]
[1641047773663,0.71410745,46923.0,46920.0,0.0425]
[1641047774050,0.5879607,46921.0,46920.0,0.0425]
[1641047775550,0.01932653,46923.0,46920.0,0.0425]
[1641047775849,0.01932653,46923.0,46922.0,0.32456229]
[1641047776506,0.01932653,46923.0,46922.0,0.32575456]
[1641047776904,0.00875959,46926.0,46922.0,0.32575456]
[1641047777106,0.00875959,46926.0,46925.0,0.35844716]
[1641047777705,0.00543779,46926.0,46925.0,0.35844716]
[1641047778306,6.00861,46930.0,46925.0,0.35844716]
[1641047778506,6.00861,46930.0,46925.0,0.37831393]
[1641047779306,6.00861,46930.0,46925.0,0.01986677]
[1641047779766,0.072,46929.0,46925.0,0.01986677]
[1641047780160,0.072,46929.0,46925.0,0.04018423]
[1641047780359,0.072,46929.0,46925.0,0.02031746]
[1641047780761,0.072,46929.0,46922.0,0.34640186]
[1641047781959,0.02229397,46928.0,46922.0,0.34640186]
[1641047782160,0.02229397,46928.0,46922.0,0.36481232]
[1641047782359,0.02229397,46928.0,46922.0,0.34416502]
[1641047782561,0.02229397,46928.0,46922.0,0.3625156]
[1641047782760,0.02229397,46928.0,46922.0,0.34410514]
[1641047783498,0.02229397,46928.0,46922.0,0.36595766]
[1641047783699,0.02229397,46928.0,46922.0,0.34760708]
[1641047784499,0.02229397,46928.0,46922.0,0.36946041]
[1641047784701,0.02229397,46928.0,46922.0,0.34760789]
[1641047785501,0.02229397,46928.0,46922.0,0.36666022]
[1641047785705,0.02229397,46928.0,46922.0,0.34480689]
[1641047786307,0.053294,46927.0,46922.0,0.34480689]
[1641047786502,0.053294,46927.0,46922.0,0.04093972]
[1641047786702,0.053294,46927.0,46922.0,0.02188739]
[1641047786907,0.07214593,46927.0,46922.0,0.02188739]
[1641047788354,0.07214593,46927.0,46922.0,0.00119227]
[1641047791997,0.07269996,46927.0,46922.0,0.00119227]
[1641047792998,0.70114233,46924.0,46922.0,0.00119227]
[1641047794849,1.26174636,46923.0,46922.0,0.00119227]
[1641047795049,1.9432034,46923.0,46922.0,0.00119227]
[1641047795244,1.48784822,46923.0,46922.0,0.00119227]
[1641047795446,1.63666674,46923.0,46922.0,0.00119227]
[1641047795845,3.2453442,46923.0,46922.0,0.00119227]
[1641047797047,4.18323159,46923.0,46922.0,0.00119227]
[1641047797547,3.2453442,46923.0,46922.0,0.00119227]
[1641047799006,0.25054116,46914.0,46907.0,0.01872663]
[1641047799306,0.30385716,46914.0,46907.0,0.01872663]
[1641047799505,0.0425,46913.0,46907.0,0.01872663]
[1641047799707,0.340792,46912.0,46907.0,0.01872663]
[1641047799908,0.69956,46909.0,46906.0,0.01843585]
[1641047800105,0.340792,46908.0,46906.0,0.01843585]
[1641047800306,0.053321,46907.0,46906.0,0.01843585]
[1641047800506,0.394113,46907.0,46906.0,0.01843585]
[1641047801509,0.394113,46907.0,46900.0,0.00011]
[1641047801707,0.053321,46907.0,46903.0,0.02030535]
[1641047802109,0.053324,46905.0,46903.0,0.02030535]
[1641047802357,0.57790663,46904.0,46903.0,0.02030535]
[1641047802759,0.89497184,46904.0,46903.0,0.02030535]
[1641047802959,0.57790663,46904.0,46903.0,0.02030535]
[1641047803158,0.340792,46904.0,46903.0,0.02030535]
[1641047803358,0.86947734,46905.0,46903.0,0.02030535]
[1641047803558,0.86947734,46905.0,46900.0,0.00011]
[1641047803757,0.05332,46902.0,46900.0,0.00011]
[1641047805361,0.63548238,46902.0,46900.0,0.00011]
[1641047805564,0.340792,46901.0,46900.0,0.00011]
[1641047806408,1.53411414,46901.0,46900.0,0.00011]
[1641047806904,0.83551929,46901.0,46900.0,0.00011]
[1641047807102,0.52690082,46901.0,46900.0,0.00011]
[1641047807603,0.14360882,46901.0,46900.0,0.00011]
[1641047808204,0.697487,46901.0,46900.0,0.00011]
[1641047808405,0.697487,46901.0,46900.0,0.26029134]
[1641047808802,0.697487,46902.0,46900.0,0.26029134]
[1641047809404,0.58226082,46905.0,46901.0,0.27882517]
[1641047809603,0.58226082,46905.0,46901.0,0.37132517]
[1641047810044,0.58226082,46905.0,46901.0,0.47132517]
[1641047810248,0.07,46905.0,46901.0,0.37132517]
[1641047810448,0.07,46905.0,46902.0,0.340792]
[1641047810644,0.07,46905.0,46903.0,0.0425]
[1641047811644,0.07,46905.0,46904.0,0.27450337]
[1641047811846,0.07,46905.0,46904.0,0.31700337]
[1641047812045,0.07,46905.0,46904.0,0.0425]
[1641047813602,0.07,46905.0,46904.0,0.32901655]
[1641047813802,0.07,46905.0,46904.0,0.66980855]
[1641047814801,0.07,46905.0,46904.0,0.69125354]
[1641047815803,0.07,46905.0,46904.0,0.70945742]
[1641047816004,0.07,46905.0,46904.0,0.68801243]
[1641047816404,0.07,46905.0,46904.0,0.73922103]
[1641047816603,0.07,46905.0,46904.0,0.83922103]
[1641047816803,0.00875731,46910.0,46905.0,0.95]
[1641047817004,0.00875731,46910.0,46909.0,0.10647018]
[1641047817269,0.00875731,46910.0,46909.0,1.34390097]
[1641047817458,0.01931786,46921.0,46915.0,0.00125415]
[1641047817659,0.01931786,46921.0,46916.0,0.0425]
[1641047817858,0.01931786,46921.0,46917.0,0.27638727]
[1641047818059,0.01931786,46921.0,46917.0,0.31888727]
[1641047818261,0.01931786,46921.0,46918.0,0.27690376]
[1641047818459,0.01931786,46921.0,46920.0,0.29708601]
[1641047818659,0.01931786,46921.0,46920.0,0.67942729]
[1641047819860,0.01931786,46921.0,46920.0,0.70141057]
[1641047820262,0.08931786,46921.0,46920.0,0.40432456]
[1641047820666,0.08931786,46921.0,46920.0,0.38234128]
[1641047820867,0.08931786,46921.0,46920.0,0.40286576]
[1641047822006,0.053296,46922.0,46920.0,0.42161688]
[1641047822205,0.053296,46922.0,46920.0,0.4010924]
[1641047823005,0.053296,46922.0,46920.0,0.42116368]
[1641047823205,0.43,46921.0,46920.0,0.02007128]
[1641047823409,1.06124589,46921.0,46920.0,0.02007128]
[1641047823905,1.35305282,46921.0,46920.0,0.02007128]
[1641047824104,1.35305282,46921.0,46907.0,0.24678458]
[1641047824305,1.01226082,46921.0,46914.0,0.23865126]
[1641047824504,0.12592914,46923.0,46914.0,0.23865126]
[1641047824505,0.053305,46915.0,46914.0,0.67748761]
[1641047826057,0.053305,46915.0,46914.0,0.69611313]
[1641047827557,0.053305,46915.0,46914.0,0.71612939]
[1641047827758,0.053305,46915.0,46914.0,0.69750387]
[1641047828610,0.053305,46915.0,46914.0,0.71665572]
[1641047828808,0.053305,46915.0,46914.0,0.69663946]
[1641047829108,0.053305,46915.0,46914.0,0.6981089]
[1641047829309,0.053301,46917.0,46914.0,0.6981089]
[1641047829910,0.053301,46917.0,46914.0,0.71863485]
[1641047830111,0.053301,46917.0,46914.0,0.69801356]
[1641047831012,0.053301,46917.0,46914.0,0.71855268]
[1641047831218,0.053298,46919.0,46914.0,0.69802673]
[1641047831811,0.00875049,46920.0,46914.0,0.69802673]
[1641047832011,0.00875049,46920.0,46914.0,0.71617545]
[1641047832255,0.03864818,46921.0,46914.0,0.69563633]
[1641047832256,0.01932519,46921.0,46914.0,0.69563633]
[1641047832457,0.053298,46920.0,46914.0,0.41563633]
[1641047832756,0.01932519,46921.0,46914.0,0.41563633]
[1641047833157,0.01932519,46921.0,46914.0,0.38681123]
[1641047833356,0.01932519,46921.0,46914.0,0.36866251]
[1641047833556,0.01932519,46921.0,46918.0,0.27018776]
[1641047833760,0.01932519,46921.0,46914.0,0.36866251]
[1641047834057,0.01932519,46921.0,46914.0,0.39014514]
[1641047834257,0.053301,46919.0,46914.0,0.36897024]
[1641047834757,0.053301,46919.0,46918.0,0.28045182]
[1641047836004,0.07262319,46921.0,46918.0,0.28045182]
[1641047837006,0.01932669,46922.0,46918.0,0.28045182]
[1641047838910,0.01932669,46922.0,46918.0,0.28173701]
[1641047839862,0.01932669,46922.0,46920.0,0.053285]
[1641047840063,0.01932669,46922.0,46920.0,0.0425]
[1641047841964,0.01932684,46923.0,46918.0,0.34888946]
[1641047842163,0.01932684,46923.0,46918.0,0.3700752]
[1641047842364,0.01932684,46923.0,46918.0,0.35163756]
[1641047842963,0.01932684,46923.0,46919.0,0.00119232]
[1641047843603,0.01932684,46923.0,46922.0,0.38518683]
[1641047845807,0.01932684,46923.0,46922.0,0.4032086]
[1641047846208,0.01932684,46923.0,46922.0,0.42483726]
[1641047846406,0.01932684,46923.0,46922.0,0.40681549]
[1641047846810,0.00878087,46928.0,46922.0,0.40681549]
[1641047847008,0.01932721,46925.0,46923.0,0.06182684]
[1641047847264,0.01932721,46925.0,46924.0,0.00128609]
[1641047847454,0.01932721,46925.0,46924.0,2.04878609]
[1641047847855,0.01932721,46925.0,46924.0,1.58565547]
[1641047848054,0.01932721,46925.0,46924.0,1.70614326]
[1641047848455,0.01932721,46925.0,46924.0,1.80733547]
[1641047848655,0.01932721,46925.0,46924.0,1.70733547]
[1641047848856,0.01932721,46925.0,46924.0,1.80733547]
[1641047849055,0.01932721,46925.0,46924.0,1.82609689]
[1641047849456,0.01932721,46925.0,46924.0,1.8056091]
[1641047849856,0.01932721,46925.0,46924.0,2.2056091]
[1641047850054,0.01932721,46925.0,46924.0,2.6464011]
[1641047850255,0.01932721,46925.0,46924.0,2.66674996]
[1641047850456,0.01932721,46925.0,46924.0,2.64798854]
[1641047851108,0.01932721,46925.0,46924.0,2.66821197]
[1641047851306,0.01932721,46925.0,46924.0,2.64786311]
[1641047851507,0.01932721,46925.0,46924.0,2.54786311]
[1641047851906,0.01932721,46925.0,46924.0,1.41647193]
[1641047852107,0.01932768,46927.0,46926.0,1.125]
[1641047852305,0.01932768,46927.0,46926.0,1.96318258]
[1641047852504,0.01932768,46927.0,46926.0,2.16318258]
[1641047853106,0.01932768,46927.0,46926.0,1.68411635]
[1641047853507,0.01932768,46927.0,46926.0,1.69050753]
[1641047853708,0.01932768,46927.0,46926.0,1.68411635]
[1641047854108,0.01932768,46927.0,46926.0,1.70695397]
[1641047854308,0.01932768,46927.0,46926.0,1.6860202]
[1641047854769,0.01932768,46927.0,46926.0,2.1860202]
[1641047854962,0.02793768,46927.0,46926.0,2.1860202]
[1641047855163,0.02793768,46927.0,46926.0,2.20586489]
[1641047855462,0.02793768,46927.0,46926.0,2.18421943]
[1641047856264,0.02793768,46927.0,46926.0,2.20256336]
[1641047856465,0.02793768,46927.0,46926.0,2.18271867]
[1641047856669,0.02793768,46927.0,46926.0,1.88830468]
[1641047857065,0.00861,46927.0,46926.0,1.88830468]
[1641047857765,0.00861,46927.0,46926.0,1.90661025]
[1641047857967,0.00861,46927.0,46926.0,1.73826632]
[1641047858166,0.00861,46927.0,46926.0,1.25823512]
[1641047858366,0.00861,46927.0,46926.0,1.18992955]
[1641047859005,0.00861,46927.0,46926.0,0.06366096]
[1641047859808,0.00861,46927.0,46926.0,0.08472653]
[1641047861809,0.00861,46927.0,46926.0,1.53227428]
[1641047862262,0.00861,46927.0,46926.0,0.36623991]
[1641047862663,0.00861,46927.0,46926.0,0.09369216]
[1641047863261,0.00861,46927.0,46926.0,0.11490578]
[1641047864362,0.0061889,46927.0,46926.0,0.11490578]
[1641047864563,0.0061889,46927.0,46926.0,0.09369216]
[1641047866004,0.0061889,46927.0,46926.0,0.04369216]
[1641047870259,5.94771918,46930.0,46926.0,0.04369216]
[1641047875317,0.00861,46927.0,46926.0,0.04369216]
[1641047880369,0.00861,46927.0,46926.0,0.00119216]
[1641047885050,0.00861,46927.0,46926.0,1.46427284]
[1641047885452,0.00861,46927.0,46926.0,1.80506484]
[1641047886451,0.00861,46927.0,46926.0,1.86917367]
[1641047886651,0.00861,46927.0,46926.0,0.74417367]
[1641047886855,0.00861,46927.0,46926.0,0.40338167]
[1641047887051,0.00861,46927.0,46926.0,0.11530099]
[1641047887453,0.00861,46927.0,46926.0,0.40337866]
[1641047887753,0.00861,46927.0,46926.0,0.11307316]
[1641047888607,0.00861,46927.0,46926.0,0.36434369]
[1641047889004,0.00861,46927.0,46926.0,0.09369216]
[1641047889406,0.00861,46927.0,46926.0,0.06504414]
[1641047890508,0.00861,46927.0,46926.0,0.34538269]
[1641047890705,0.00861,46927.0,46926.0,0.32403071]
[1641047891506,0.00861,46927.0,46926.0,0.34591527]
[1641047892548,0.00861,46927.0,46926.0,0.36756278]
[1641047892850,0.00861,46927.0,46926.0,0.34567822]
[1641047893248,0.00861,46927.0,46926.0,0.06533967]
[1641047893449,0.00861,46927.0,46926.0,0.08462259]
[1641047893652,0.00861,46927.0,46926.0,0.06297508]
[1641047895353,0.00861,46927.0,46926.0,0.04369216]
[1641047895853,0.00861,46927.0,46926.0,0.32213055]
[1641047896135,0.00861,46927.0,46926.0,1.55040955]
[1641047896340,0.00861,46927.0,46926.0,1.27197116]
[1641047896635,0.00861,46927.0,46926.0,1.29243689]
[1641047897636,0.00861,46927.0,46926.0,1.31112792]
[1641047897837,0.00861,46927.0,46926.0,1.29066219]
[1641047898636,0.00861,46927.0,46926.0,1.30994582]
[1641047898838,0.00861,46927.0,46926.0,1.29125479]
[1641047899241,0.00861,46927.0,46926.0,1.63204679]
[1641047899439,0.00861,46927.0,46926.0,1.65119816]
[1641047899638,0.00861,46927.0,46926.0,1.63191453]
[1641047900047,0.00861,46927.0,46926.0,1.63226614]
[1641047900450,0.00861,46927.0,46926.0,0.50726614]
[1641047900647,0.00861,46927.0,46926.0,0.18742645]
[1641047900848,0.00861,46927.0,46926.0,0.16827508]
[1641047902449,0.00861,46927.0,46926.0,0.09404377]
[1641047918707,5.94771918,46930.0,46927.0,0.26092515]
[1641047919107,5.94771918,46930.0,46928.0,0.3812972]
[1641047919709,5.95632918,46930.0,46928.0,0.3812972]
[1641047920211,5.95632918,46930.0,46929.0,0.0425]
[1641047925750,5.95632918,46930.0,46929.0,0.04404063]
[1641047927220,5.95575251,46930.0,46929.0,0.04404063]
[1641047928925,5.95575251,46930.0,46929.0,0.00154063]
[1641047929127,6.00903751,46930.0,46929.0,0.00154063]
[1641047930653,6.59129833,46930.0,46929.0,0.00154063]
[1641047931555,6.00903751,46930.0,46929.0,0.00144245]
[1641047931755,6.59129833,46930.0,46929.0,0.00144245]
[1641047931960,6.93209033,46930.0,46929.0,0.00144245]
[1641047932158,7.0833849,46930.0,46929.0,0.00144245]
[1641047932355,6.50112408,46930.0,46929.0,0.00144245]
[1641047933054,7.31727742,46930.0,46929.0,0.00144245]
[1641047933517,7.39403644,46930.0,46929.0,0.00144245]
[1641047934521,7.88943502,46930.0,46929.0,0.00144245]
[1641047935318,7.68943502,46930.0,46929.0,0.00144245]
[1641047938055,7.56138143,46930.0,46929.0,0.00144245]
[1641047938254,7.22058943,46930.0,46929.0,0.00144245]
[1641047938454,5.95575251,46930.0,46929.0,0.00144245]
[1641047940556,5.95575251,46930.0,46929.0,0.04394245]
[1641047952271,5.95575251,46930.0,46929.0,0.04458753]
[1641047954174,5.95575251,46930.0,46929.0,1.16958753]
[1641047954974,5.95575251,46930.0,46929.0,1.19036198]
[1641047956130,5.95575251,46930.0,46929.0,1.20843422]
[1641047956327,5.95575251,46930.0,46929.0,1.18765977]
[1641047956528,5.95575251,46930.0,46929.0,0.06265977]
[1641047957629,5.95575251,46930.0,46929.0,0.08254991]
[1641047957829,5.95575251,46930.0,46929.0,0.06447767]
[1641047958430,5.95575251,46930.0,46929.0,1.16958753]
[1641047958630,5.95575251,46930.0,46929.0,0.04458753]
[1641047959030,5.95575251,46930.0,46929.0,0.06291821]
[1641047960291,5.95575251,46930.0,46929.0,0.04458753]
[1641047972930,5.95575251,46930.0,46929.0,0.00208753]
[1641047973730,5.95546417,46930.0,46929.0,0.00208753]
[1641047975867,6.00874917,46930.0,46929.0,0.00208753]
[1641047978071,6.34954117,46930.0,46929.0,0.00208753]
[1641047978272,6.00874917,46930.0,46929.0,0.00208753]
[1641047980626,6.34954117,46930.0,46929.0,0.00208753]
[1641047980824,6.5368979,46930.0,46929.0,0.00208753]
[1641047982671,7.74833625,46930.0,46929.0,0.00208753]
[1641047993821,7.79833625,46930.0,46929.0,0.00208753]
[1641047994424,7.74833625,46930.0,46929.0,0.00208753]
[1641047995627,7.79833625,46930.0,46929.0,0.00208753]
[1641047996025,6.5868979,46930.0,46929.0,0.00208753]
[1641047998085,6.7867979,46930.0,46929.0,0.00208753]
[1641047999486,7.36843879,46930.0,46929.0,0.00208753]
[1641047999689,7.71812824,46930.0,46929.0,0.00208753]
[1641048000293,7.81812824,46930.0,46929.0,0.00208753]
[1641048001316,7.71812824,46930.0,46929.0,0.00208753]
[1641048001717,7.56822824,46930.0,46929.0,6.494e-05]
[1641048001918,7.17469088,46930.0,46929.0,6.494e-05]
[1641048002117,6.34954117,46930.0,46929.0,6.494e-05]
[1641048002321,6.00874917,46930.0,46929.0,6.494e-05]
[1641048002518,5.95546417,46930.0,46929.0,6.494e-05]
[1641048002918,5.95546417,46930.0,46929.0,0.30952616]
[1641048003119,5.95546417,46930.0,46929.0,0.61945582]
[1641048003420,5.95546417,46930.0,46929.0,0.66945582]
[1641048003621,5.95546417,46930.0,46929.0,0.81195582]
[1641048004018,5.95546417,46930.0,46929.0,1.39195582]
[1641048004217,5.95546417,46930.0,46929.0,1.08325586]
[1641048004418,5.95546417,46930.0,46929.0,1.39437621]
[1641048006085,5.95546417,46930.0,46929.0,1.41265244]
[1641048006286,5.95546417,46930.0,46929.0,0.8623544]
[1641048006488,5.95546417,46930.0,46929.0,1.38212738]
[1641048006684,5.95546417,46930.0,46929.0,1.36385115]
[1641048007490,5.95546417,46930.0,46929.0,1.38259318]
[1641048007688,5.95546417,46930.0,46929.0,1.3628202]
[1641048008549,5.95546417,46930.0,46929.0,1.38284604]
[1641048009248,5.95546417,46930.0,46929.0,1.34407817]
[1641048009452,5.95546417,46930.0,46929.0,1.36422391]
[1641048010450,5.95546417,46930.0,46929.0,1.38241039]
[1641048010850,5.95546417,46930.0,46929.0,2.50741039]
[1641048011451,5.95546417,46930.0,46929.0,2.46907817]
[1641048011750,5.95546417,46930.0,46929.0,2.48989799]
[1641048011949,5.95546417,46930.0,46929.0,2.46907817]
[1641048012778,5.95546417,46930.0,46929.0,1.34407817]
[1641048012977,5.95546417,46930.0,46929.0,1.36387531]
[1641048013576,5.95546417,46930.0,46929.0,1.38575777]
[1641048013777,5.95546417,46930.0,46929.0,1.36596063]
[1641048014477,5.95546417,46930.0,46929.0,1.38629246]
[1641048014677,5.95546417,46930.0,46929.0,2.51129246]
[1641048015276,5.95546417,46930.0,46929.0,2.46907817]
[1641048015476,5.95546417,46930.0,46929.0,2.48927719]
[1641048016318,5.95546417,46930.0,46929.0,1.36427719]
[1641048016519,5.95546417,46930.0,46929.0,1.38282783]
[1641048016721,5.95546417,46930.0,46929.0,1.36262881]
[1641048016920,5.95546417,46930.0,46929.0,2.48762881]
[1641048017519,5.95546417,46930.0,46929.0,2.50853129]
[1641048017723,5.95546417,46930.0,46929.0,2.48998065]
[1641048018521,5.95546417,46930.0,46929.0,2.5084207]
[1641048018819,5.95546417,46930.0,46929.0,2.48751822]
[1641048019222,5.95546417,46930.0,46929.0,1.36251822]
[1641048019422,5.95495073,46930.0,46929.0,1.36251822]
[1641048019625,5.95495073,46930.0,46929.0,1.38091512]
[1641048019871,5.95495073,46930.0,46929.0,1.07165276]
[1641048020569,5.95495073,46930.0,46929.0,1.34874753]
[1641048020767,5.95495073,46930.0,46929.0,1.33035063]
[1641048021574,5.95495073,46930.0,46929.0,1.35193643]
[1641048021772,5.95495073,46930.0,46929.0,0.84292722]
[1641048022572,5.95495073,46930.0,46929.0,0.8638371]
[1641048022777,5.94634073,46930.0,46929.0,0.8638371]
[1641048023375,5.94634073,46930.0,46929.0,0.82257854]
[1641048023624,5.94634073,46930.0,46929.0,0.84213565]
[1641048023824,5.94634073,46930.0,46929.0,1.96713565]
[1641048024225,2.76896152,46930.0,46929.0,1.96713565]
[1641048024428,2.76896152,46930.0,46929.0,2.31431883]
[1641048024429,0.70522937,46930.0,46929.0,2.31431883]
[1641048024627,0.70522937,46930.0,46929.0,2.33376836]
[1641048024826,0.70522937,46930.0,46929.0,2.81421125]
[1641048025227,0.70522937,46930.0,46929.0,2.81458844]
[1641048026230,0.01516177,46945.0,46933.0,0.00127162]
[1641048026430,0.01516177,46945.0,46938.0,2.085]
[1641048026627,0.01516177,46945.0,46938.0,2.475792]
[1641048026827,0.002,46949.0,46938.0,2.475792]
[1641048027027,0.01516545,46945.0,46938.0,2.618292]
[1641048027276,0.01516545,46945.0,46938.0,2.29806372]
[1641048027670,0.01516545,46945.0,46938.0,2.31957724]
[1641048027870,0.01516545,46945.0,46938.0,2.71470601]
[1641048028077,0.002,46949.0,46942.0,0.340792]
[1641048028273,0.002,46949.0,46946.0,0.340792]
[1641048028472,0.002,46949.0,46944.0,1.23274071]
[1641048028473,0.002,46949.0,46948.0,0.34207914]
[1641048028671,0.002,46949.0,46948.0,0.39207914]
[1641048029075,0.002,46949.0,46948.0,1.95205566]
[1641048029275,0.002,46949.0,46948.0,2.46703752]
[1641048029475,0.002,46949.0,46948.0,2.14455566]
[1641048029674,0.02036489,46955.0,46950.0,0.05542207]
[1641048029875,0.02036489,46955.0,46951.0,0.34207852]
[1641048030078,0.02036489,46955.0,46951.0,0.49207852]
[1641048030276,0.01156076,46955.0,46951.0,0.49207852]
[1641048030476,0.01156076,46955.0,46951.0,0.53457852]
[1641048030680,0.06526031,46952.0,46951.0,0.55348205]
[1641048030878,0.06526031,46952.0,46951.0,0.60672205]
[1641048031129,0.06526031,46952.0,46951.0,0.65672205]
[1641048031332,0.06526031,46952.0,46951.0,0.97666833]
[1641048031729,0.06526031,46952.0,46951.0,0.97821086]
[1641048032330,0.06526031,46952.0,46951.0,0.97985979]
[1641048032731,0.06526031,46952.0,46951.0,0.99900395]
[1641048032930,0.06526031,46952.0,46951.0,0.97855789]